bitfinex/quotes_SOLUSD_20250310
["timestamp","ask_amount","ask_price","bid_price","bid_amount"]
[1741586431094,16.83922876,128.05,128.04,2.7388926]
[1741586431793,6.35886157,128.04,128.03,0.063]
[1741586431978,39.75299595,128.04,128.03,0.0001]
[1741586432865,1.65936157,128.03,128.02,0.0001]
[1741586433079,1.65936157,128.03,127.98,0.505]
[1741586433080,0.14216157,127.99,127.98,0.505]
[1741586433281,16.83922876,127.99,127.98,0.505]
[1741586433971,20.0,128.0,127.98,0.505]
[1741586434186,16.69706719,127.99,127.98,0.505]
[1741586434720,26.46768262,127.99,127.98,0.505]
[1741586436084,25.83674419,127.99,127.98,0.505]
[1741586436395,33.64984419,127.99,127.98,0.505]
[1741586436977,1.95751543,127.99,127.98,0.505]
[1741586437280,21.95751543,127.99,127.98,0.505]
[1741586437792,1.95751543,127.99,127.98,0.505]
[1741586437997,21.95751543,127.99,127.98,0.505]
[1741586438185,38.65458262,127.99,127.98,0.505]
[1741586438387,46.46768262,127.99,127.98,0.505]
[1741586440299,38.65458262,127.99,127.98,0.505]
[1741586440599,21.95751543,127.99,127.98,0.505]
[1741586443377,20.0,127.99,127.98,0.505]
[1741586444901,20.0,127.99,127.98,0.568]
[1741586446204,36.69706719,127.99,127.98,0.568]
[1741586446385,44.65232876,127.99,127.98,0.568]
[1741586447700,46.61188628,127.99,127.98,0.568]
[1741586448093,38.79878628,127.99,127.98,0.568]
[1741586449005,38.65662471,127.99,127.95,24.08056719]
[1741586449208,1.95955752,127.99,127.96,16.69706719]
[1741586449804,1.95955752,127.99,127.96,24.51156719]
[1741586450203,16.69706719,128.0,127.96,7.8145]
[1741586450499,16.69706719,128.0,127.96,24.51156719]
[1741586451100,23.73706719,128.01,127.96,204.8228643]
[1741586451303,23.73706719,128.01,127.97,16.69706719]
[1741586451304,7.04,128.01,127.97,16.69706719]
[1741586451893,7.04,128.01,127.97,197.0083643]
[1741586452413,16.69706719,128.02,127.97,197.0083643]
[1741586452804,24.50836719,128.02,127.97,204.8223643]
[1741586453094,16.69706719,128.0,127.97,180.31129711]
[1741586454210,24.50986719,128.0,127.97,180.31129711]
[1741586454510,28.99913287,128.01,127.97,180.31129711]
[1741586454711,43.73706719,128.01,127.97,180.31129711]
[1741586455006,43.73706719,128.01,127.97,188.12549711]
[1741586456614,27.04,128.01,127.97,204.8225643]
[1741586456919,20.0,127.99,127.97,204.8225643]
[1741586457412,16.69706719,127.99,127.97,180.37429711]
[1741586457912,16.69706719,127.99,127.97,79.57429711]
[1741586458427,31.69292876,127.98,127.97,0.063]
[1741586459222,77.05319236,127.98,127.97,0.0001]
[1741586459394,79.01283413,127.98,127.97,0.0001]
[1741586460404,35.23077053,127.98,127.97,0.0001]
[1741586461291,51.92783772,127.98,127.97,0.0001]
[1741586463321,20.0,127.95,127.93,0.063]
[1741586463619,16.69706719,127.94,127.93,0.063]
[1741586465221,16.69706719,127.94,127.91,0.568]
[1741586465222,20.14216157,127.92,127.91,0.568]
[1741586465412,22.98146719,127.98,127.92,0.14216157]
[1741586465611,22.98146719,127.98,127.93,16.69706719]
[1741586465801,16.69706719,127.98,127.93,16.69706719]
[1741586466132,20.0,127.95,127.93,16.69706719]
[1741586466329,20.0,127.95,127.93,180.31129711]
[1741586466504,20.0,127.94,127.93,180.31129711]
[1741586467319,20.14216157,127.92,127.91,0.568]
[1741586467523,60.63629595,127.92,127.91,0.568]
[1741586468504,62.59708912,127.92,127.91,0.568]
[1741586469724,70.55655069,127.92,127.91,0.568]
[1741586469935,0.14216157,127.91,127.9,0.063]
[1741586470103,16.83922876,127.91,127.9,0.063]
[1741586471102,18.80002193,127.91,127.9,0.063]
[1741586473022,21.96079317,127.91,127.9,0.063]
[1741586473627,36.69706719,127.91,127.9,0.063]
[1741586474526,36.69706719,127.92,127.9,0.063]
[1741586475531,20.0,127.92,127.9,0.063]
[1741586475910,36.69706719,127.92,127.9,0.063]
[1741586476107,20.0,127.92,127.9,0.063]
[1741586476308,16.69706719,127.96,127.9,197.0713643]
[1741586476504,16.69706719,127.96,127.91,16.69706719]
[1741586477113,16.83922876,127.97,127.92,16.69706719]
[1741586477512,20.0,127.95,127.93,16.69706719]
[1741586477826,20.0,127.95,127.94,7.8161]
[1741586478435,1.9598905,127.96,127.94,7.8161]
[1741586478930,1.9598905,127.96,127.94,24.51316719]
[1741586479327,1.9598905,127.96,127.94,204.8244643]
[1741586479531,0.03,127.98,127.94,204.8244643]
[1741586479749,20.03,127.98,127.94,204.8244643]
[1741586480717,36.72706719,127.98,127.94,180.31129711]
[1741586482028,1.95959111,127.97,127.94,180.31129711]
[1741586482225,16.83922876,127.96,127.9,197.0713643]
[1741586482419,16.83922876,127.96,127.91,7.8179]
[1741586482625,16.83922876,127.96,127.91,24.51496719]
[1741586483228,0.14216157,127.96,127.92,16.69706719]
[1741586483950,16.69706719,127.96,127.91,24.51496719]
[1741586484127,0.03,127.98,127.92,18.933972]
[1741586484333,0.03,127.98,127.97,16.69706719]
[1741586485821,0.03,127.98,127.97,204.96482587]
[1741586486525,20.0,128.0,127.97,180.31129711]
[1741586486722,20.0,128.0,127.97,188.12539711]
[1741586486937,20.0,128.0,127.97,204.8224643]
[1741586487251,20.0,128.0,127.98,16.69706719]
[1741586487545,16.72706719,128.02,127.97,204.8224643]
[1741586487841,16.72706719,128.02,127.97,188.12539711]
[1741586488044,16.72706719,128.02,127.97,204.8224643]
[1741586488247,0.17216157,128.02,127.97,204.8224643]
[1741586488446,1.95908937,128.01,127.98,16.69706719]
[1741586488945,1.95908937,128.01,127.97,204.8224643]
[1741586489418,16.72706719,128.02,127.97,204.8224643]
[1741586489614,0.03,128.02,127.97,204.8224643]
[1741586489840,20.0,128.01,127.97,204.8224643]
[1741586490542,0.03,128.02,128.0,16.69706719]
[1741586490927,0.03,128.02,127.99,16.69706719]
[1741586492042,0.03,128.02,127.99,24.50986719]
[1741586493253,16.69706719,128.0,127.94,81.03659711]
[1741586493430,20.0,127.99,127.94,189.65249711]
[1741586493629,20.0,127.99,127.94,206.3495643]
[1741586493932,20.0,127.99,127.95,16.69706719]
[1741586494333,20.0,127.99,127.94,181.83659711]
[1741586494547,36.83922876,127.98,127.94,180.31129711]
[1741586495450,44.65312876,127.98,127.94,79.51129711]
[1741586495625,1.95969755,127.97,127.94,79.51129711]
[1741586495956,16.69706719,127.95,127.91,180.31129711]
[1741586496251,90.50932314,127.95,127.94,0.063]
[1741586496455,90.36716157,127.95,127.94,0.063]
[1741586496943,0.14216157,127.91,127.9,0.063]
[1741586497135,44.01922876,127.91,127.9,0.063]
[1741586497535,51.83712876,127.91,127.9,0.063]
[1741586497736,53.79682631,127.91,127.9,0.063]
[1741586498546,0.14216157,127.89,127.83,96.7133643]
[1741586498744,20.0,127.84,127.83,80.01629711]
[1741586498948,20.0,127.84,127.83,0.505]
[1741586502257,7.8193,127.89,127.83,234.24332909]
[1741586502258,26.95478312,127.89,127.83,234.24332909]
[1741586502449,6.5652,127.9,127.85,26.81262155]
[1741586502450,26.81262155,127.9,127.85,26.81262155]
[1741586503152,26.81262155,127.89,127.84,45.46227041]
[1741586504259,26.81262155,127.89,127.85,7.8216]
[1741586504946,26.81262155,127.89,127.84,7.822]
[1741586505249,26.81262155,127.89,127.84,34.63462155]
[1741586505458,26.81262155,127.89,127.84,214.94591866]
[1741586507355,26.81262155,127.88,127.84,188.13329711]
[1741586508846,26.81262155,127.88,127.84,188.19629711]
[1741586510359,26.81262155,127.89,127.84,215.00891866]
[1741586510729,46.81262155,127.88,127.84,188.19629711]
[1741586510932,20.0,127.88,127.84,188.19629711]
[1741586511133,46.81262155,127.88,127.84,188.19629711]
[1741586511664,26.81262155,127.91,127.85,45.60443198]
[1741586511865,26.95478312,127.92,127.87,26.81262155]
[1741586512051,26.95478312,127.92,127.87,106.32391866]
[1741586512569,20.0,127.9,127.87,106.32391866]
[1741586512771,20.0,127.9,127.87,207.12391866]
[1741586513345,20.0,127.9,127.88,7.8198]
[1741586513665,20.0,127.9,127.88,188.13109711]
[1741586514857,20.0,127.9,127.88,180.31129711]
[1741586515362,20.0,127.91,127.89,18.79181043]
[1741586515567,20.0,127.9,127.89,199.10310754]
[1741586516166,20.0,127.9,127.89,180.31129711]
[1741586516554,20.0,127.9,127.89,233.73492909]
[1741586516765,20.0,127.91,127.89,233.73492909]
[1741586517077,26.81262155,127.95,127.91,0.14216157]
[1741586517363,26.81262155,127.97,127.92,45.46227041]
[1741586517667,26.81262155,127.99,127.94,26.81262155]
[1741586517868,26.81262155,128.0,127.95,45.60443198]
[1741586518043,38.91101612,128.01,127.96,26.81262155]
[1741586518363,26.81262155,128.01,127.96,26.81262155]
[1741586518568,26.81262155,128.01,127.97,7.8143]
[1741586518772,26.81262155,128.01,127.97,87.32559711]
[1741586519262,0.17216157,128.02,127.97,114.13821866]
[1741586519263,26.84262155,128.02,127.97,114.13821866]
[1741586519678,0.03,128.02,127.98,26.81262155]
[1741586519873,26.81262155,127.99,127.94,26.95478312]
[1741586520053,26.81262155,127.99,127.94,207.26608023]
[1741586520377,20.0,127.99,127.95,35.37209586]
[1741586520584,20.0,127.99,127.95,215.68339297]
[1741586520957,16.722447,127.98,127.95,180.31129711]
[1741586521857,16.752447,127.98,127.95,180.31129711]
[1741586522170,36.722447,127.96,127.92,79.51129711]
[1741586522470,36.722447,127.95,127.92,79.51129711]
[1741586522770,16.722447,127.94,127.92,79.51129711]
[1741586523087,16.722447,127.93,127.88,16.722447]
[1741586523272,16.722447,127.92,127.87,197.03374411]
[1741586523575,16.722447,127.93,127.88,35.51425743]
[1741586523766,51.678247,127.95,127.9,16.722447]
[1741586524071,20.0,127.94,127.91,16.86460857]
[1741586524258,7.8151,127.96,127.91,197.17590568]
[1741586524457,24.537547,127.96,127.91,197.17590568]
[1741586524852,7.8151,127.96,127.91,180.45345868]
[1741586525046,16.722447,127.95,127.91,180.45345868]
[1741586525676,16.722447,127.95,127.91,180.31129711]
[1741586525859,16.722447,127.94,127.91,180.31129711]
[1741586526170,16.722447,127.93,127.88,197.03374411]
[1741586526373,16.722447,127.91,127.88,79.51129711]
[1741586527380,16.722447,127.92,127.88,79.51129711]
[1741586527570,16.722447,127.93,127.88,79.51129711]
[1741586528078,24.539547,127.93,127.88,79.51129711]
[1741586529249,16.722447,127.91,127.88,79.51129711]
[1741586529455,16.722447,127.91,127.84,325.4062]
[1741586529456,36.722447,127.9,127.85,24.543947]
[1741586529669,36.722447,127.9,127.85,197.03374411]
[1741586529868,24.542447,127.88,127.84,0.063]
[1741586530069,16.722447,127.87,127.84,0.063]
[1741586532081,20.0,127.88,127.84,0.063]
[1741586532378,20.0,127.86,127.84,16.785447]
[1741586532594,0.14216157,127.9,127.84,35.43509586]
[1741586532768,83.9285,127.92,127.85,16.722447]
[1741586532769,20.0,127.88,127.85,16.722447]
[1741586532961,20.0,127.88,127.86,16.722447]
[1741586533157,16.86460857,127.92,127.87,16.722447]
[1741586533383,0.14216157,127.92,127.86,16.722447]
[1741586533587,20.0,127.9,127.85,197.17590568]
[1741586533981,20.0,127.9,127.86,16.722447]
[1741586534288,20.0,127.9,127.86,24.543047]
[1741586534664,7.95966157,127.92,127.86,24.543047]
[1741586534971,23.862447,127.93,127.88,16.722447]
[1741586535176,20.0,127.9,127.87,35.51425743]
[1741586535595,7.95866157,127.94,127.88,16.722447]
[1741586535596,16.86460857,127.94,127.88,16.722447]
[1741586535955,16.86460857,127.94,127.89,16.722447]
[1741586536279,16.86460857,127.94,127.9,7.8186]
[1741586537073,20.0,127.92,127.9,24.541047]
[1741586538675,20.0,127.92,127.9,7.8186]
[1741586540388,6.6212,127.97,127.91,16.722447]
[1741586540570,0.14216157,127.96,127.92,16.722447]
[1741586540772,0.17216157,127.98,127.94,16.722447]
[1741586540971,20.0,127.96,127.94,16.722447]
[1741586541284,1.95988898,127.96,127.94,16.722447]
[1741586541486,1.95988898,127.96,127.95,16.722447]
[1741586542259,1.95988898,127.96,127.95,35.51425743]
[1741586542460,0.03,127.98,127.95,43.32975743]
[1741586542662,20.03,127.98,127.96,16.722447]
[1741586542975,0.17216157,127.98,127.95,180.31129711]
[1741586543172,16.89460857,127.98,127.95,180.31129711]
[1741586543481,20.0,127.96,127.95,180.31129711]
[1741586543687,20.0,127.97,127.95,197.03374411]
[1741586543877,20.0,127.97,127.96,16.722447]
[1741586544068,20.0,127.97,127.95,204.84924411]
[1741586545069,20.0,127.97,127.95,197.03374411]
[1741586545483,33.9049,127.97,127.91,180.31129711]
[1741586545669,42.812947,127.97,127.91,87.32899711]
[1741586545979,50.627247,127.97,127.92,16.722447]
[1741586546689,1.95991239,127.96,127.92,16.722447]
[1741586546891,9.77481239,127.96,127.92,16.722447]
[1741586547396,16.722447,127.94,127.9,100.8]
[1741586547572,16.722447,127.92,127.88,180.31129711]
[1741586548883,0.14216157,127.91,127.87,16.722447]
[1741586549192,16.86460857,127.91,127.86,35.37209586]
[1741586549574,20.14216157,127.89,127.86,79.51129711]
[1741586549788,36.86460857,127.89,127.85,100.8]
[1741586550288,46.9405087,127.89,127.85,100.8]
[1741586551010,1.96053212,127.9,127.88,26.79834713]
[1741586551201,1.96053212,127.9,127.89,45.59015756]
[1741586551506,0.14216157,127.96,127.89,227.47035467]
[1741586551711,0.03,127.98,127.94,26.79834713]
[1741586552073,0.17216157,127.98,127.94,26.79834713]
[1741586552370,26.9705087,127.98,127.93,45.44799599]
[1741586553313,1.95958759,127.97,127.93,45.44799599]
[1741586553467,20.0,127.95,127.93,26.79834713]
[1741586553669,26.79834713,127.96,127.91,18.79181043]
[1741586553874,20.0,127.95,127.93,26.79834713]
[1741586554576,20.0,127.95,127.93,207.10964424]
[1741586555097,0.14216157,127.96,127.93,180.31129711]
[1741586555591,26.9405087,127.96,127.93,180.31129711]
[1741586555794,20.0,127.91,127.89,79.51129711]
[1741586556281,20.0,127.91,127.89,114.12884424]
[1741586557303,20.0,127.91,127.9,18.79181043]
[1741586557473,20.0,127.92,127.9,45.59015756]
[1741586557674,0.14216157,127.93,127.89,207.10964424]
[1741586557882,20.0,127.91,127.89,214.92874424]
[1741586558081,20.0,127.91,127.9,26.79834713]
[1741586558776,21.96030923,127.92,127.89,214.92874424]
[1741586559086,20.0,127.91,127.89,214.92874424]
[1741586559285,20.0,127.91,127.89,214.99174424]
[1741586559581,20.03,127.91,127.89,214.99174424]
[1741586562001,0.03,127.91,127.9,26.79834713]
[1741586562191,0.03,127.91,127.9,45.59015756]
[1741586562394,20.03,127.91,127.89,207.17264424]
[1741586562581,0.03,127.91,127.9,26.79834713]
[1741586562984,0.03,127.91,127.9,45.59015756]
[1741586563392,0.03,127.91,127.9,18.79181043]
[1741586564702,0.03,127.91,127.9,180.31129711]
[1741586564995,20.03,127.91,127.9,180.31129711]
[1741586565582,0.03,127.91,127.9,180.31129711]
[1741586566197,0.03,127.91,127.9,188.12989711]
[1741586566700,20.03,127.91,127.9,180.31129711]
[1741586566906,0.03,127.91,127.9,180.31129711]
[1741586567094,0.03,127.91,127.9,188.12989711]
[1741586567905,0.03,127.91,127.9,79.51129711]
[1741586568586,20.03,127.91,127.9,79.51129711]
[1741586569106,0.03,127.91,127.9,79.51129711]
[1741586570503,26.82834713,127.91,127.9,79.51129711]
[1741586570695,0.03,127.91,127.9,79.51129711]
[1741586570902,20.03,127.91,127.9,79.51129711]
[1741586572011,21.9904537,127.91,127.9,79.51129711]
[1741586572904,1.9904537,127.91,127.9,79.51129711]
[1741586573313,21.9904537,127.91,127.9,79.51129711]
[1741586573607,21.9904537,127.91,127.9,79.57429711]
[1741586573806,21.9904537,127.91,127.9,0.063]
[1741586573807,38.86857244,127.91,127.9,0.063]
[1741586574014,26.68647244,127.91,127.9,0.063]
[1741586575186,2.13261527,127.91,127.9,0.063]
[1741586575383,46.68647244,127.91,127.9,0.063]
[1741586576315,56.74581586,127.91,127.9,0.063]
[1741586577114,48.92791586,127.91,127.9,0.063]
[1741586577820,56.74581586,127.91,127.9,0.063]
[1741586578190,48.78575429,127.91,127.9,0.063]
[1741586579214,56.74581586,127.91,127.9,0.063]
[1741586579509,56.60365429,127.91,127.9,0.063]
[1741586579712,48.78575429,127.91,127.9,0.063]
[1741586580015,1.9904537,127.91,127.9,0.063]
[1741586580317,28.78575429,127.91,127.9,0.063]
[1741586581605,36.74581586,127.91,127.9,0.063]
[1741586583315,1.9904537,127.91,127.9,0.20516157]
[1741586583614,12.12839457,127.98,127.91,25.15704886]
[1741586583824,12.12839457,127.98,127.95,26.79530059]
[1741586583999,38.92369516,127.98,127.95,79.51129711]
[1741586584196,12.09839457,127.96,127.95,79.51129711]
[1741586584697,12.09839457,127.96,127.95,125.09840813]
[1741586584900,12.09839457,127.96,127.95,79.51129711]
[1741586585303,12.09839457,127.96,127.95,87.32679711]
[1741586585503,12.09839457,127.96,127.95,132.91390813]
[1741586586416,12.09839457,127.96,127.95,233.71390813]
[1741586587323,26.82530059,127.98,127.95,180.31129711]
[1741586587617,0.03,127.96,127.95,180.31129711]
[1741586588413,0.03,127.96,127.95,79.51129711]
[1741586594525,0.03,127.96,127.95,132.91390813]
[1741586596330,0.03,127.96,127.95,122.83910893]
[1741586596630,0.03,127.96,127.95,106.11860754]
[1741586596804,0.03,127.96,127.95,122.83910893]
[1741586597432,0.03,127.96,127.95,223.63910893]
[1741586599229,0.03,127.96,127.95,206.91860754]
[1741586599856,0.03,127.96,127.95,223.63910893]
[1741586600314,0.03,127.98,127.96,18.79181043]
[1741586600513,0.03,127.98,127.97,35.51231182]
[1741586601445,0.03,127.98,127.97,198.96094597]
[1741586601736,0.03,127.98,127.97,199.10310754]
[1741586604236,0.03,127.98,127.96,100.8]
[1741586604639,0.03,127.98,127.96,119.59181043]
[1741586607359,0.03,127.98,127.95,79.51129711]
[1741586607360,20.0,127.96,127.95,180.31129711]
[1741586607547,20.0,127.96,127.95,199.10310754]
[1741586608561,20.0,127.96,127.95,180.31129711]
[1741586611226,36.86266296,127.96,127.92,180.31129711]
[1741586611428,36.72050139,127.95,127.92,79.51129711]
[1741586612663,44.53610139,127.95,127.92,79.51129711]
[1741586614250,20.0,127.92,127.91,0.063]
[1741586614430,24.53780139,127.92,127.91,0.063]
[1741586614629,44.53780139,127.92,127.91,0.063]
[1741586615351,44.67996296,127.92,127.91,0.063]
[1741586616650,36.72050139,127.92,127.91,0.063]
[1741586617033,44.53780139,127.92,127.91,0.063]
[1741586617231,36.72050139,127.92,127.91,0.063]
[1741586617640,44.67996296,127.92,127.91,0.063]
[1741586619362,48.54046435,127.92,127.91,0.063]
[1741586619859,31.81996296,127.92,127.91,0.063]
[1741586620037,7.28216157,127.92,127.91,0.063]
[1741586620360,24.00266296,127.92,127.91,0.063]
[1741586620543,103.58,127.95,127.91,0.063]
[1741586620544,1.641,127.95,127.91,0.063]
[1741586620733,0.03,127.96,127.92,35.51231182]
[1741586621238,20.0,127.94,127.92,35.51231182]
[1741586621536,20.0,127.94,127.92,18.79181043]
[1741586622859,20.0,127.94,127.91,180.37429711]
[1741586622860,36.72050139,127.94,127.91,180.37429711]
[1741586623037,20.0,127.92,127.91,180.37429711]
[1741586623242,20.0,127.92,127.91,0.063]
[1741586624838,26.92232511,127.92,127.91,0.063]
[1741586625050,26.78016354,127.92,127.91,0.063]
[1741586625246,46.78016354,127.93,127.91,0.063]
[1741586625442,26.78016354,127.94,127.91,0.063]
[1741586625639,20.0,127.92,127.91,0.063]
[1741586628551,26.92232511,127.92,127.91,0.063]
[1741586629363,34.73962511,127.92,127.91,0.063]
[1741586630751,34.59746354,127.92,127.91,0.063]
[1741586630957,34.73962511,127.92,127.91,0.063]
[1741586631160,63.07278865,127.92,127.91,0.0001]
[1741586631357,69.69708865,127.92,127.91,0.0001]
[1741586633053,0.14216157,127.91,127.89,0.063]
[1741586633375,61.88092511,127.9,127.89,0.063]
[1741586633953,61.88092511,127.9,127.89,0.0001]
[1741586635071,0.14216157,127.89,127.84,0.063]
[1741586635272,46.92232511,127.85,127.84,0.063]
[1741586636172,54.74392511,127.85,127.84,0.063]
[1741586636379,46.92232511,127.85,127.84,0.063]
[1741586637266,44.80607428,127.85,127.84,0.063]
[1741586638081,0.14216157,127.84,127.78,2.7388926]
[1741586638268,26.78016354,127.79,127.78,2.7388926]
[1741586638466,0.14216157,127.82,127.78,2.7388926]
[1741586638669,26.78016354,127.79,127.78,2.7388926]
[1741586640163,26.92232511,127.79,127.78,2.7388926]
[1741586640362,26.78016354,127.79,127.78,2.7388926]
[1741586642165,26.92232511,127.79,127.78,2.7388926]
[1741586642580,26.78016354,127.79,127.78,2.7388926]
[1741586642780,26.92232511,127.79,127.78,2.7388926]
[1741586642977,34.74762511,127.79,127.78,2.7388926]
[1741586643156,40.75672511,127.79,127.78,2.7388926]
[1741586644286,113.30655506,127.79,127.78,2.7388926]
[1741586644466,30.90655506,127.79,127.78,2.7388926]
[1741586644665,0.14216157,127.77,127.71,0.063]
[1741586644892,20.0,127.74,127.71,0.063]
[1741586645184,16.78783192,127.72,127.71,0.063]
[1741586645885,16.78783192,127.73,127.71,0.063]
[1741586646271,36.78783192,127.72,127.71,0.063]
[1741586647282,20.0,127.72,127.71,0.063]
[1741586647585,16.78783192,127.73,127.71,0.063]
[1741586647786,16.78783192,127.74,127.71,0.063]
[1741586648463,16.78783192,127.73,127.71,0.063]
[1741586649085,16.78783192,127.74,127.71,0.063]
[1741586649290,23.96783192,127.75,127.71,0.063]
[1741586649474,16.78783192,127.75,127.71,7.8932]
[1741586650066,16.78783192,127.74,127.71,7.8932]
[1741586650969,36.78783192,127.75,127.71,7.8932]
[1741586651169,36.78783192,127.75,127.71,27.4688]
[1741586651862,16.78783192,127.74,127.71,27.4688]
[1741586652989,36.78783192,127.75,127.71,27.4688]
[1741586654574,16.78783192,127.74,127.71,27.4688]
[1741586655492,36.78783192,127.75,127.71,27.4688]
[1741586656088,36.78783192,127.75,127.71,7.8932]
[1741586656389,16.78783192,127.73,127.71,7.8932]
[1741586658575,16.78783192,127.72,127.71,0.063]
[1741586658780,16.92999349,127.72,127.71,0.063]
[1741586658990,16.78783192,127.72,127.71,0.063]
[1741586659299,0.14216157,127.72,127.71,0.063]
[1741586659488,16.92999349,127.72,127.71,0.063]
[1741586660395,16.78783192,127.72,127.71,0.063]
[1741586661994,24.61743192,127.72,127.71,0.063]
[1741586662367,16.78783192,127.72,127.71,0.063]
[1741586663696,20.0,127.7,127.68,8.337]
[1741586663889,36.78783192,127.7,127.68,0.505]
[1741586664889,16.78783192,127.69,127.68,0.505]
[1741586667674,16.78783192,127.69,127.68,8.337]
[1741586668886,36.78783192,127.7,127.68,8.337]
[1741586669993,36.78783192,127.7,127.68,0.505]
[1741586670298,20.0,127.66,127.58,180.37429711]
[1741586670475,16.78783192,127.62,127.58,79.57429711]
[1741586670679,100.84333192,127.68,127.58,79.57429711]
[1741586670680,82.4,127.68,127.61,0.14216157]
[1741586670998,36.78783192,127.66,127.61,16.78783192]
[1741586671192,36.78783192,127.66,127.62,18.79181043]
[1741586671584,16.78783192,127.65,127.62,18.79181043]
[1741586671888,16.78783192,127.65,127.61,180.31129711]
[1741586672283,16.78783192,127.64,127.61,180.31129711]
[1741586672900,16.78783192,127.64,127.61,188.14719711]
[1741586674276,16.78783192,127.64,127.61,7.8359]
[1741586674680,36.78783192,127.66,127.61,24.62373192]
[1741586674909,20.0,127.66,127.62,35.57964235]
[1741586675104,36.78783192,127.66,127.63,7.8351]
[1741586676388,16.78783192,127.66,127.63,7.8351]
[1741586677995,16.78783192,127.67,127.63,7.8351]
[1741586679501,16.78783192,127.68,127.63,24.62293192]
[1741586680006,16.78783192,127.69,127.64,16.78783192]
[1741586680687,16.78783192,127.7,127.65,35.57964235]
[1741586681088,16.78783192,127.7,127.65,35.43748078]
[1741586681293,16.78783192,127.69,127.65,18.64964886]
[1741586681809,24.61923192,127.69,127.65,18.64964886]
[1741586682199,16.78783192,127.69,127.65,26.48344886]
[1741586682609,0.03,127.67,127.65,26.48344886]
[1741586683111,0.03,127.67,127.65,43.27128078]
[1741586684106,0.03,127.67,127.64,16.78783192]
[1741586684287,20.0,127.66,127.61,7.8991]
[1741586684489,0.03,127.67,127.61,0.20516157]
[1741586684696,20.0,127.63,127.61,0.20516157]
[1741586684992,20.0,127.63,127.61,0.063]
[1741586685196,16.78783192,127.64,127.61,0.063]
[1741586685392,24.62233192,127.64,127.61,0.063]
[1741586686212,16.78783192,127.63,127.61,0.063]
[1741586686403,20.0,127.62,127.61,0.063]
[1741586686723,36.78783192,127.62,127.61,0.063]
[1741586687095,20.0,127.62,127.61,0.063]
[1741586687310,44.62333192,127.63,127.61,0.063]
[1741586688019,16.78783192,127.62,127.61,0.063]
[1741586688319,20.0,127.63,127.61,0.063]
[1741586689994,36.78783192,127.63,127.61,0.063]
[1741586691115,16.78783192,127.62,127.61,0.063]
[1741586691695,16.92999349,127.62,127.61,0.063]
[1741586691895,41.38332541,127.62,127.61,0.063]
[1741586692304,49.21902541,127.62,127.61,0.063]
[1741586692491,131.61902541,127.62,127.61,0.063]
[1741586693527,114.83119349,127.62,127.61,0.063]
[1741586693897,131.61902541,127.62,127.61,0.063]
[1741586695019,49.21902541,127.62,127.61,0.063]
[1741586696115,32.43119349,127.62,127.61,0.063]
[1741586700907,23.07469349,127.62,127.61,0.063]
[1741586701512,16.92999349,127.62,127.61,0.063]
[1741586701919,16.78783192,127.62,127.61,0.063]
[1741586703009,24.76569349,127.62,127.61,0.063]
[1741586703604,41.55352541,127.62,127.61,0.063]
[1741586704834,41.55352541,127.62,127.53,25.13383192]
[1741586704835,20.14216157,127.58,127.53,0.505]
[1741586705006,16.78783192,127.56,127.53,0.505]
[1741586705333,36.78783192,127.55,127.53,0.505]
[1741586705500,20.0,127.54,127.53,0.505]
[1741586705705,89.56,127.58,127.53,17.29283192]
[1741586705706,99.18783192,127.58,127.53,17.29283192]
[1741586705919,16.78783192,127.56,127.53,0.505]
[1741586707030,16.78783192,127.56,127.53,0.568]
[1741586707526,16.78783192,127.56,127.53,8.4092]
[1741586707724,1.5777,127.6,127.53,25.19703192]
[1741586707928,16.78783192,127.59,127.54,16.78783192]
[1741586708231,36.78783192,127.57,127.53,25.19703192]
[1741586708429,36.78783192,127.57,127.53,8.4092]
[1741586708615,16.78783192,127.56,127.53,8.4092]
[1741586709112,16.92999349,127.54,127.53,0.568]
[1741586710911,24.77059349,127.54,127.53,0.568]